fUSD/lending_fUSD_20241023
["ID","MTS","AMOUNT","RATE_DAILY","PERIOD"]
[340715911,1729704638478,-638.62950665,0.00065753,120]
[340715912,1729704638629,-500.0,0.00065753,120]
[340715913,1729704638639,-500.0,0.00065753,120]
[340715915,1729704638649,-500.0,0.00065753,120]
[340715917,1729704638659,-500.0,0.00065753,120]
[340715919,1729704638668,-500.0,0.00065753,120]
[340715921,1729704638678,-500.0,0.00065753,120]
[340715923,1729704638687,-500.0,0.00065753,120]
[340715925,1729704638697,-500.0,0.00065753,120]
[340715927,1729704638707,-500.0,0.00065753,120]
[340715929,1729704638716,-500.0,0.00065753,120]
[340715931,1729704638725,-500.0,0.00065753,120]
[340715933,1729704638735,-500.0,0.00065753,120]
[340715935,1729704638745,-9900.34092986,0.00066,120]
[340715937,1729704638754,-202.7,0.00066064,2]
[340715939,1729704638764,-1000.0,0.00066144,120]
[340715941,1729704638774,-3419.073,0.00066668,120]
[340715943,1729704638784,-1920.292,0.000669,2]
[340715945,1729704638793,-1819.1605,0.000669,2]
[340715947,1729704638804,-1000.0,0.000669,2]
[340715949,1729704638813,-2500.0,0.000669,2]
[340715951,1729704638823,-1007.0,0.000669,14]
[340715953,1729704638832,-150.4652481,0.000669,28]
[340715955,1729704638842,-500.0,0.00066989,120]
[340715957,1729704638853,-500.0,0.00066989,120]
[340715959,1729704638863,-500.0,0.00066989,120]
[340715961,1729704638872,-509.80576077,0.00066989,120]
[340715963,1729704638881,-518.97,0.00066989,120]
[340715965,1729704638895,-500.0,0.00066989,2]
[340715967,1729704638904,-500.0,0.00066989,120]
[340715969,1729704638913,-500.0,0.00066989,120]
[340715971,1729704638923,-500.0,0.00066989,120]
[340715973,1729704638933,-2007.51201984,0.0006699,16]
[340715976,1729704638951,-1000.0,0.000512,7]
[340715978,1729704638960,-31959.37085786,0.0006699,16]
[340715980,1729704638972,-500.0,0.00066999,120]
[340715982,1729704638982,-500.0,0.00066999,120]
[340715984,1729704638993,-500.0,0.00066999,120]
[340715986,1729704639003,-2718.2,0.00066999,120]
[340715988,1729704639013,-500.0,0.00066999,120]
[340715990,1729704639024,-500.0,0.00066999,120]
[340715992,1729704639034,-500.0,0.00066999,120]
[340715994,1729704639043,-500.0,0.00066999,120]
[340715996,1729704639052,-510.11,0.00066999,120]
[340715998,1729704639061,-500.0,0.00066999,120]
[340716000,1729704639071,-500.0,0.00066999,120]
[340716002,1729704639080,-500.0,0.00066999,120]
[340716004,1729704639090,-500.0,0.00066999,120]
[340716006,1729704639101,-500.0,0.00066999,120]
[340716008,1729704639111,-7500.00009787,0.00067,120]
[340716010,1729704639120,-4000.0,0.00067,120]
[340716012,1729704639130,-48748.48666337,0.00067,120]
[340716014,1729704639139,-103279.54695689,0.00067,120]
[340716016,1729704639149,-12648.0,0.00067,120]
[340716018,1729704639159,-4755.56767513,0.00067,120]
[340716020,1729704639168,-497.4382056,0.00067023,38]
[340716022,1729704639178,-8491.72071942,0.0006709,16]
[340716024,1729704639188,-776.287757,0.000671,2]
[340716026,1729704639198,-8491.72071942,0.00067113,16]
[340716028,1729704639207,-8491.72071942,0.00067113,16]
[340716030,1729704639218,-500.0,0.00067122,120]
[340716032,1729704639227,-500.0,0.00067122,120]
[340716034,1729704639237,-500.0,0.00067122,120]
[340716036,1729704639247,-626.11,0.00067122,120]
[340716038,1729704639256,-500.0,0.00067122,120]
[340716040,1729704639266,-500.0,0.00067122,120]
[340716042,1729704639275,-500.0,0.00067122,120]
[340716044,1729704639284,-500.0,0.00067122,120]
[340716046,1729704639293,-500.0,0.00067122,2]
[340716047,1729704639302,-500.0,0.00067122,120]
[340716049,1729704639311,-500.0,0.00067122,120]
[340716051,1729704639320,-334.27,0.00067122,120]
[340716053,1729704639330,-210.0,0.00067123,120]
[340716055,1729704639339,-1000.0,0.00067123,120]
[340716057,1729704639350,-1000.0,0.00067123,120]
[340716059,1729704639359,-1000.0,0.00067123,120]
[340716061,1729704639369,-500.0,0.00067123,120]
[340716063,1729704639378,-500.0,0.00067123,120]
[340716065,1729704639387,-500.0,0.00067123,120]
[340716067,1729704639397,-299.43355403,0.00067123,120]
[340716069,1729704639407,-498.93016021,0.00067123,120]
[340716071,1729704639417,-500.0,0.00067123,120]
[340716073,1729704639426,-500.0,0.00067123,120]
[340716075,1729704639435,-500.0,0.00067123,120]
[340716077,1729704639444,-500.0,0.00067123,120]
[340716079,1729704639453,-500.0,0.00067123,120]
[340716080,1729704639462,-500.0,0.00067123,120]
[340716081,1729704639471,-500.0,0.00067123,120]
[340716082,1729704639481,-500.0,0.00067123,120]
[340716083,1729704639490,-500.0,0.00067123,120]
[340716084,1729704639500,-508.90238689,0.00067123,120]
[340716085,1729704639509,-500.0,0.00067123,120]
[340716086,1729704639519,-500.0,0.00067123,120]
[340716087,1729704639528,-500.0,0.00067123,120]
[340716088,1729704639537,-500.0,0.00067123,120]
[340716089,1729704639546,-200.0,0.00067123,120]
[340716090,1729704639555,-500.0,0.00067123,120]
[340716091,1729704639565,-500.0,0.00067123,120]
[340716092,1729704639575,-500.0,0.00067123,120]
[340716093,1729704639585,-500.0,0.00067123,120]
[340716094,1729704639598,-500.0,0.00067123,120]
[340716095,1729704639607,-500.0,0.00067123,120]
[340716096,1729704639616,-500.0,0.00067123,120]
[340716097,1729704639626,-500.0,0.00067123,120]
[340716098,1729704639635,-500.0,0.00067123,120]
[340716099,1729704639645,-500.0,0.00067123,120]
[340716100,1729704639654,-391.97417581,0.00067123,120]
[340716101,1729704639664,-500.0,0.00067123,120]
[340716102,1729704639673,-502.46331086,0.00067123,120]
[340716103,1729704639683,-150.36,0.00067123,30]
[340716104,1729704639693,-300.57,0.00067123,30]
[340716105,1729704639703,-150.0,0.00067123,30]
[340716106,1729704639712,-150.0,0.00067123,30]
[340716107,1729704639723,-301.37,0.00067123,30]
[340716108,1729704639732,-150.0,0.00067123,30]
[340716109,1729704639742,-150.0,0.00067123,30]
[340716110,1729704639751,-302.93,0.00067123,30]
[340716111,1729704639761,-150.0,0.00067123,30]
[340716112,1729704639771,-150.0,0.00067123,30]
[340716113,1729704639781,-150.0,0.00067123,30]
[340716114,1729704639791,-150.0,0.00067123,30]
[340716115,1729704639801,-150.0,0.00067123,30]
[340716116,1729704639811,-150.0,0.00067123,30]
[340716117,1729704639820,-150.0,0.00067123,30]
[340716118,1729704639830,-150.0,0.00067123,30]
[340716119,1729704639839,-300.0,0.00067123,30]
[340716120,1729704639850,-302.6,0.00067123,30]
[340716121,1729704639860,-500.0,0.00067453,120]
[340716122,1729704639869,-547.6152,0.00067489,2]
[340716123,1729704639880,-451.0107,0.00067489,2]
[340716124,1729704639891,-4000.0,0.00067578,120]
[340716125,1729704639901,-500.0,0.00067579,120]
[340716126,1729704639910,-517.83,0.00067579,120]
[340716127,1729704639920,-500.0,0.00067579,120]
[340716128,1729704639930,-500.0,0.00067579,120]
[340716129,1729704639938,-500.0,0.00067579,120]
[340716130,1729704639948,-522.4044587,0.00067579,120]
[340716131,1729704639959,-500.0,0.00067579,120]
[340716132,1729704639971,-151.0,0.00067579,120]
[340716134,1729704639979,-159.830681,0.00067579,120]
[340716135,1729704639989,-151.0,0.00067579,120]
[340716136,1729704639998,-151.0,0.00067579,120]
[340716137,1729704640007,-500.0,0.00067579,120]
[340716138,1729704640016,-175.923713,0.00067579,120]
[340716139,1729704640025,-500.0,0.00067579,7]
[340716140,1729704640034,-175.923713,0.00067579,120]
[340716141,1729704640044,-151.0,0.00067579,120]
[340716142,1729704640054,-42458.6035971,0.00067579,16]
[340716143,1729704640065,-151.54,0.00067579,120]
[340716144,1729704640074,-500.0,0.00067588,120]
[340716145,1729704640083,-500.0,0.00067588,120]
[340716146,1729704640093,-500.0,0.00067588,120]
[340716147,1729704640103,-2718.2,0.00067588,120]
[340716148,1729704640112,-500.0,0.00067588,120]
[340716149,1729704640122,-500.0,0.00067588,120]
[340716150,1729704640131,-500.0,0.00067588,120]
[340716151,1729704640141,-594.74,0.00067588,120]
[340716152,1729704640150,-184.48105638,0.00067588,31]
[340716153,1729704640160,-8491.72071942,0.00067589,16]
[340716154,1729704640170,-151.0,0.00067589,120]
[340716155,1729704640180,-269.191637,0.00067589,120]
[340716156,1729704640191,-269.191637,0.00067589,120]
[340716157,1729704640200,-151.0,0.00067589,120]
[340716158,1729704640210,-151.0,0.00067589,120]
[340716159,1729704640219,-5100.4944,0.00067589,2]
[340716160,1729704640229,-33340.3304,0.00067589,2]
[340716161,1729704640238,-1577.6814,0.00067589,2]
[340716162,1729704640248,-500.0,0.00067589,2]
[340716163,1729704640258,-1000.0,0.00067589,30]
[340716164,1729704640268,-47013.9217,0.00067589,2]
[340716165,1729704640277,-500.0,0.00067599,120]
[340716166,1729704640286,-500.0,0.00067599,120]
[340716167,1729704640296,-500.0,0.00067599,120]
[340716168,1729704640306,-1449.12,0.00067599,120]
[340716169,1729704640318,-500.0,0.00067599,120]
[340716170,1729704640327,-500.0,0.00067599,120]
[340716171,1729704640337,-500.0,0.00067599,120]
[340716172,1729704640347,-8365.4764,0.000676,120]
[340716173,1729704640357,-171.348901,0.000676,110]
[340716174,1729704640366,-611.3696,0.0006766,14]
[340716175,1729704640379,-151.0,0.0006766,120]
[340716176,1729704640389,-151.0,0.0006766,120]
[340716177,1729704640398,-276.748108,0.0006766,120]
[340716178,1729704640408,-175.923713,0.0006766,120]
[340716179,1729704640418,-175.923713,0.0006766,120]
[340716180,1729704640427,-151.0,0.0006766,120]
[340716181,1729704640437,-8491.72071942,0.0006766,16]
[340716182,1729704640447,-151.54,0.0006766,120]
[340716183,1729704640456,-151.54,0.00067669,120]
[340716184,1729704640466,-658.0,0.0006767,120]
[340716185,1729704640475,-658.0,0.0006767,120]
[340716186,1729704640485,-658.0,0.0006767,120]
[340716187,1729704640495,-658.0,0.0006767,120]
[340716188,1729704640504,-658.0,0.0006767,120]
[340716189,1729704640514,-658.0,0.0006767,120]
[340716190,1729704640523,-658.0,0.0006767,120]
[340716191,1729704640533,-658.0,0.0006767,120]
[340716192,1729704640542,-658.0,0.0006767,120]
[340716193,1729704640552,-658.0,0.0006767,120]
[340716194,1729704640561,-658.0,0.0006767,120]
[340716196,1729704640571,-665.82029273,0.0006767,120]
[340716198,1729704640581,-150.0,0.0006767,120]
[340716199,1729704640590,-150.0,0.0006767,120]
[340716200,1729704640600,-150.0,0.0006767,120]
[340716201,1729704640609,-150.0,0.0006767,120]
[340716202,1729704640619,-152.72222543,0.0006767,120]
[340716203,1729704640629,-16983.4414388,0.0006767,16]
[340716205,1729704640638,-151.54,0.0006767,120]
[340716207,1729704640648,-8491.72071942,0.00067678,16]
[340716209,1729704640657,-6398.93829926,0.00067678,14]
[340716211,1729704640667,-500.0,0.00067678,120]
[340716213,1729704640676,-158.17,0.00067678,120]
[340716215,1729704640685,-151.54,0.00067679,120]
[340716217,1729704640695,-151.0,0.00067679,120]
[340716219,1729704640704,-151.0,0.00067679,120]
[340716221,1729704640714,-175.923713,0.00067679,120]
[340716223,1729704640723,-175.923713,0.00067679,120]
[340716225,1729704640732,-151.0,0.00067679,120]
[340716227,1729704640742,-50950.3243165,0.00067679,16]
[340716229,1729704640751,-48808.84934035,0.00067679,14]
[340716231,1729704640765,-1321.2372,0.00067679,14]
[340716234,1729704640782,-500.0,0.00066989,120]
[340716236,1729704640791,-673.98706814,0.00067679,14]
[340716238,1729704640803,-387.43278561,0.00067679,14]
[340716240,1729704640813,-151.54,0.00067679,120]
[340716242,1729704640822,-151.0,0.0006768,120]
[340716244,1729704640831,-528.11787706,0.0006768,120]
[340716246,1729704640840,-500.0,0.0006768,120]
[340716248,1729704640850,-347.7969846,0.0006768,120]
[340716253,1729704640894,-152.2030154,0.0006768,120]
[340716255,1729704640903,-98.42752603,0.0006768,120]
[340716257,1729704640914,-401.57247397,0.0006768,120]
[340716259,1729704640923,-500.0,0.0006768,120]
[340716261,1729704640933,-500.0,0.0006768,120]
[340716263,1729704640942,-284.75560746,0.0006768,120]
[340716265,1729704640952,-500.0,0.0006768,120]
[340716267,1729704640962,-500.0,0.0006768,120]
[340716269,1729704640972,-500.0,0.0006768,120]
[340716271,1729704640981,-110.17191857,0.0006768,120]
[340716289,1729704641155,-174.99399911,0.0006768,120]
[340716291,1729704641164,-500.0,0.0006768,120]
[340716293,1729704641173,-500.0,0.0006768,120]
[340716295,1729704641183,-500.0,0.0006768,120]
[340716297,1729704641192,-500.0,0.0006768,120]
[340716299,1729704641201,-500.0,0.0006768,120]
[340716301,1729704641211,-500.0,0.0006768,120]
[340716303,1729704641220,-500.0,0.0006768,120]
[340716305,1729704641229,-500.0,0.0006768,120]
[340716307,1729704641238,-500.0,0.0006768,120]
[340716309,1729704641247,-500.0,0.0006768,120]
[340716311,1729704641256,-500.0,0.0006768,120]
[340716313,1729704641266,-469.02310809,0.0006768,120]
[340716315,1729704641275,-500.0,0.0006768,120]
[340716317,1729704641284,-500.0,0.0006768,120]
[340716319,1729704641294,-500.0,0.0006768,120]
[340716321,1729704641303,-500.0,0.0006768,120]
[340716322,1729704641313,-500.0,0.0006768,120]
[340716324,1729704641322,-500.0,0.0006768,120]
[340716326,1729704641331,-500.0,0.0006768,120]
[340716328,1729704641340,-151.0,0.0006768,120]
[340716330,1729704641352,-151.0,0.0006768,120]
[340716333,1729704641362,-374.07707639,0.0006768,120]
[340716334,1729704641370,-500.0,0.0006768,120]
[340716336,1729704641379,-175.923713,0.0006768,120]
[340716338,1729704641388,-500.0,0.0006768,120]
[340716340,1729704641397,-500.0,0.0006768,7]
[340716342,1729704641406,-175.923713,0.0006768,120]
[340716344,1729704641416,-500.0,0.0006768,120]
[340716346,1729704641425,-151.0,0.0006768,120]
[340716348,1729704641434,-500.0,0.0006768,120]
[340716350,1729704641443,-11643.51711294,0.0006768,30]
[340716353,1729704641457,-13311.47624364,0.0006768,30]
[340716355,1729704641466,-33966.8828777,0.0006768,16]
[340716357,1729704641474,-57590.4446933,0.0006768,14]
[340716359,1729704641484,-500.0,0.00067687,120]
[340716360,1729704641493,-219.84991673,0.00067688,120]
[340716362,1729704641502,-500.0,0.00067688,120]
[340716364,1729704641512,-500.0,0.00067688,120]
[340716366,1729704641520,-500.0,0.00067688,120]
[340716368,1729704641529,-500.0,0.00067688,120]
[340716370,1729704641538,-500.0,0.00067688,120]
[340716372,1729704641547,-557.10142167,0.00067688,120]
[340716374,1729704641556,-500.0,0.00067688,120]
[340716376,1729704641565,-500.0,0.00067688,120]
[340716378,1729704641574,-500.0,0.00067688,120]
[340716380,1729704641583,-500.0,0.00067688,120]
[340716382,1729704641593,-500.0,0.00067688,120]
[340716384,1729704641603,-500.0,0.00067688,120]
[340716386,1729704641612,-390.69257039,0.00067688,120]
[340716388,1729704641621,-500.0,0.00067688,120]
[340716390,1729704641630,-500.0,0.00067688,120]
[340716392,1729704641639,-500.0,0.00067688,120]
[340716394,1729704641648,-500.0,0.00067688,120]
[340716396,1729704641658,-500.0,0.00067688,120]
[340716398,1729704641667,-262.58,0.00067688,120]
[340716399,1729704641675,-500.0,0.00067688,120]
[340716401,1729704641684,-506.42216735,0.00067688,120]
[340716403,1729704641693,-500.0,0.00067688,120]
[340716404,1729704641703,-500.0,0.00067688,120]
[340716405,1729704641712,-500.0,0.00067688,120]
[340716406,1729704641721,-611.43067772,0.00067688,120]
[340716407,1729704641730,-626.11,0.00067688,120]
[340716408,1729704641739,-641.90163855,0.00067688,120]
[340716409,1729704641748,-500.0,0.00067688,120]
[340716410,1729704641757,-481.45059101,0.00067688,120]
[340716411,1729704641767,-500.0,0.00067688,120]
[340716412,1729704641776,-500.0,0.00067688,120]
[340716413,1729704641785,-500.0,0.00067688,120]
[340716414,1729704641794,-500.0,0.00067688,120]
[340716415,1729704641803,-500.0,0.00067688,60]
[340716416,1729704641812,-500.0,0.00067688,60]
[340716417,1729704641821,-500.0,0.00067688,120]
[340716418,1729704641829,-500.0,0.00067688,120]
[340716419,1729704641838,-500.0,0.00067688,120]
[340716420,1729704641848,-500.0,0.00067688,120]
[340716421,1729704641857,-500.0,0.00067688,120]
[340716422,1729704641866,-500.0,0.00067688,120]
[340716423,1729704641876,-500.0,0.00067688,120]
[340716425,1729704641888,-500.0,0.00067688,120]
[340716426,1729704641897,-500.0,0.00067688,120]
[340716428,1729704641906,-515.12480139,0.00067688,120]
[340716430,1729704641917,-500.0,0.00067688,120]
[340716432,1729704641927,-500.0,0.00067688,120]
[340716435,1729704641938,-500.0,0.00067688,120]
[340716437,1729704641947,-533.94111821,0.00067688,120]
[340716439,1729704641960,-177.47086034,0.00067688,7]
[340716441,1729704641971,-500.0,0.00067688,120]
[340716443,1729704641981,-500.0,0.00067688,120]
[340716445,1729704641991,-5205.21136773,0.00067688,14]
[340716447,1729704642004,-1193.72693153,0.00067688,14]
[340716449,1729704642013,-9342.93923252,0.00067688,61]
[340716454,1729704642051,-12591.74101146,0.00067688,61]
[340716458,1729704642079,-975.92965206,0.00067688,61]
[340716460,1729704642090,-6849.025929,0.00067688,61]
[340716463,1729704642102,-658.48,0.00067688,61]
[340716465,1729704642113,-2376.0900311,0.00067688,61]
[340716467,1729704642124,-826.155,0.00067688,61]
[340716469,1729704642134,-34818.11168403,0.00067688,61]
[340716471,1729704642145,-2350.57502057,0.00067688,61]
[340716532,1729704643028,-500.0,0.0006768,120]
[340716534,1729704643037,-4466.08232097,0.00067688,61]
[340716536,1729704643049,-18882.2302086,0.00067688,61]
[340716538,1729704643058,-19196.8148978,0.00067689,14]
[340716541,1729704643068,-151.0,0.00067689,120]
[340716543,1729704643078,-500.0,0.00067689,120]
[340716545,1729704643088,-500.0,0.00067689,120]
[340716547,1729704643098,-500.0,0.00067689,120]
[340716549,1729704643108,-500.0,0.00067689,120]
[340716551,1729704643118,-500.0,0.00067689,120]
[340716553,1729704643127,-500.0,0.00067689,120]
[340716555,1729704643136,-500.0,0.00067689,120]
[340716557,1729704643145,-549.49233988,0.00067689,120]
[340716559,1729704643155,-500.0,0.00067689,120]
[340716561,1729704643165,-500.0,0.00067689,120]
[340716563,1729704643174,-500.0,0.00067689,120]
[340716565,1729704643184,-500.0,0.00067689,120]
[340716567,1729704643193,-500.0,0.00067689,120]
[340716569,1729704643203,-500.0,0.00067689,120]
[340716571,1729704643213,-500.0,0.00067689,120]
[340716573,1729704643223,-151.0,0.00067689,120]
[340716575,1729704643233,-151.0,0.00067689,120]
[340716577,1729704643244,-1449.12,0.00067689,120]
[340716579,1729704643254,-151.0,0.00067689,120]
[340716581,1729704643263,-500.0,0.00067689,120]
[340716583,1729704643275,-500.0,0.00067689,120]
[340716585,1729704643286,-608.17902,0.00067689,120]
[340716587,1729704643297,-500.0,0.00067689,120]
[340716589,1729704643306,-500.0,0.00067689,120]
[340716591,1729704643317,-3366.0,0.00067689,120]
[340716594,1729704643327,-378.033938,0.00067689,120]
[340716595,1729704643337,-630.18,0.00067689,120]
[340716596,1729704643348,-378.033938,0.00067689,120]
[340716597,1729704643359,-500.0,0.00067689,120]
[340716598,1729704643368,-500.0,0.00067689,120]
[340716599,1729704643377,-500.0,0.00067689,120]
[340716600,1729704643387,-500.0,0.00067689,120]
[340716601,1729704643397,-500.0,0.00067689,120]
[340716602,1729704643407,-500.0,0.00067689,120]
[340716603,1729704643417,-151.0,0.00067689,120]
[340716604,1729704643426,-691.938314,0.00067689,120]
[340716605,1729704643436,-691.938314,0.00067689,120]
[340716607,1729704643446,-500.0,0.00067689,120]
[340716609,1729704643456,-500.0,0.00067689,120]
[340716611,1729704643465,-151.0,0.00067689,120]
[340716612,1729704643476,-500.0,0.00067689,120]
[340716613,1729704643485,-500.0,0.00067689,120]
[340716614,1729704643495,-151.0,0.00067689,120]
[340716616,1729704643504,-500.0,0.00067689,120]
[340716617,1729704643515,-500.0,0.00067689,120]
[340716618,1729704643525,-500.0,0.00067689,120]
[340716619,1729704643536,-500.0,0.00067689,120]
[340716620,1729704643546,-186.2,0.00067689,120]
[340716621,1729704643556,-500.0,0.00067689,120]
[340716622,1729704643566,-500.0,0.00067689,120]
[340716623,1729704643576,-269.2,0.00067689,120]
[340716624,1729704643587,-151.0,0.00067689,120]
[340716625,1729704643597,-500.0,0.00067689,120]
[340716626,1729704643608,-480.64565786,0.00067689,120]
[340716627,1729704643617,-269.191637,0.00067689,120]
[340716628,1729704643627,-269.191637,0.00067689,120]
[340716629,1729704643637,-500.0,0.00067689,120]
[340716630,1729704643648,-500.0,0.00067689,120]
[340716631,1729704643657,-500.0,0.00067689,120]
[340716632,1729704643667,-151.0,0.00067689,120]
[340716633,1729704643677,-500.0,0.00067689,120]
[340716634,1729704643686,-500.0,0.00067689,120]
[340716635,1729704643695,-500.0,0.00067689,120]
[340716636,1729704643705,-500.0,0.00067689,120]
[340716637,1729704643714,-500.0,0.00067689,120]
[340716638,1729704643724,-500.0,0.00067689,120]
[340716639,1729704643733,-500.0,0.00067689,120]
[340716640,1729704643743,-2718.2,0.00067689,120]
[340716641,1729704643752,-500.0,0.00067689,120]
[340716642,1729704643761,-500.0,0.00067689,120]
[340716643,1729704643771,-508.58,0.00067689,120]
[340716644,1729704643780,-500.0,0.00067689,120]
[340716645,1729704643789,-151.0,0.00067689,120]
[340716646,1729704643798,-500.0,0.00067689,120]
[340716647,1729704643808,-535.79,0.00067689,60]
[340716648,1729704643817,-500.0,0.00067689,120]
[340716649,1729704643826,-237.46,0.00067689,120]
[340716650,1729704643836,-219.45,0.00067689,120]
[340716651,1729704643845,-151.0,0.00067689,120]
[340716652,1729704643856,-151.0,0.00067689,120]
[340716653,1729704643866,-500.0,0.00067689,120]
[340716654,1729704643875,-252.39228,0.00067689,120]
[340716655,1729704643886,-500.0,0.00067689,120]
[340716656,1729704643895,-500.0,0.00067689,120]
[340716657,1729704643904,-500.0,0.00067689,120]
[340716658,1729704643914,-150.0,0.00067689,120]
[340716659,1729704643924,-500.0,0.00067689,120]
[340716660,1729704643935,-175.923713,0.00067689,120]
[340716661,1729704643946,-277.92,0.00067689,120]
[340716662,1729704643957,-175.923713,0.00067689,120]
[340716663,1729704643967,-500.0,0.00067689,120]
[340716664,1729704643978,-500.0,0.00067689,120]
[340716665,1729704643989,-500.0,0.00067689,120]
[340716666,1729704643998,-500.0,0.00067689,7]
[340716667,1729704644008,-500.0,0.00067689,7]
[340716668,1729704644018,-175.923713,0.00067689,120]
[340716669,1729704644030,-175.923713,0.00067689,120]
[340716670,1729704644041,-500.0,0.00067689,120]
[340716671,1729704644050,-500.0,0.00067689,120]
[340716672,1729704644060,-500.0,0.00067689,120]
[340716673,1729704644070,-500.0,0.00067689,120]
[340716674,1729704644080,-16843.18714354,0.0006769,14]
[340716675,1729704644094,-1251.99999997,0.0006769,14]
[340716676,1729704644106,-345.161895,0.0006769,14]
[340716677,1729704644122,-500.0,0.00067689,120]
[340716678,1729704644132,-2132.957596,0.0006769,14]
[340716679,1729704644144,-1297.839275,0.0006769,14]
[340716680,1729704644155,-10123.54558679,0.0006769,14]
[340716681,1729704644165,-1667.0,0.0006769,25]
[340716682,1729704644175,-151.0,0.0006769,120]
[340716683,1729704644185,-151.0,0.0006769,7]
[340716684,1729704644195,-151.0,0.0006769,120]
[340716685,1729704644205,-151.0,0.0006769,120]
[340716686,1729704644215,-151.0,0.0006769,120]
[340716687,1729704644225,-102.95604239,0.0006769,120]
[340716688,1729704644237,-48.04395761,0.0006769,120]
[340716689,1729704644246,-151.0,0.0006769,120]
[340716690,1729704644257,-151.0,0.0006769,30]
[340716691,1729704644266,-301.335721,0.0006769,120]
[340716692,1729704644275,-151.0,0.0006769,120]
[340716693,1729704644285,-151.0,0.0006769,120]
[340716694,1729704644295,-151.0,0.0006769,120]
[340716695,1729704644305,-151.0,0.0006769,120]
[340716696,1729704644315,-143.03921863,0.0006769,120]
[340716698,1729704645948,-1351.62,0.00066989,120]
[340716699,1729704645959,-1252.58856118,0.00067122,120]
[340716700,1729704646132,-99.03143882,0.00067122,120]
[340716701,1729704646142,-1351.62,0.00067678,120]
[340716702,1729704646152,-1351.62,0.00067687,120]
[340716703,1729704646161,-500.0,0.00067689,120]
[340716704,1729704646171,-1351.62,0.00067689,120]
[340716705,1729704646180,-7.96078137,0.0006769,120]
[340716706,1729704646190,-151.0,0.0006769,120]
[340716707,1729704646199,-491.050645,0.0006769,120]
[340716708,1729704646208,-491.050645,0.0006769,120]
[340716709,1729704646218,-491.050645,0.0006769,120]
[340716710,1729704646228,-491.050645,0.0006769,120]
[340716711,1729704646237,-151.0,0.0006769,120]
[340716713,1729704646247,-151.0,0.0006769,120]
[340716715,1729704646256,-151.0,0.0006769,120]
[340716717,1729704646266,-151.0,0.0006769,120]
[340716718,1729704646276,-151.0,0.0006769,120]
[340716720,1729704646285,-151.0,0.0006769,120]
[340716722,1729704646295,-151.0,0.0006769,120]
[340716724,1729704646304,-151.0,0.0006769,120]
[340716726,1729704646314,-151.0,0.0006769,120]
[340716728,1729704646323,-151.0,0.0006769,120]
[340716730,1729704646333,-151.0,0.0006769,120]
[340716732,1729704646342,-299.945769,0.0006769,120]
[340716734,1729704646353,-151.0,0.0006769,120]
[340716736,1729704646362,-151.0,0.0006769,120]
[340716738,1729704646371,-151.0,0.0006769,120]
[340716740,1729704646382,-151.0,0.0006769,120]
[340716742,1729704646392,-151.0,0.0006769,120]
[340716744,1729704646401,-151.0,0.0006769,120]
[340716746,1729704646410,-151.0,0.0006769,7]